fUSD/lending_fUSD_20240212
["ID","MTS","AMOUNT","RATE_DAILY","PERIOD"]
[313845102,1707749494355,-237.04079709,0.00032409,4]
[313845103,1707749494366,-153.86,0.000325,2]
[313845104,1707749494379,-153.86,0.000325,2]
[313845105,1707749494391,-153.86,0.000325,2]
[313845106,1707749494403,-153.86,0.000325,2]
[313845107,1707749494413,-153.86,0.000325,2]
[313845108,1707749494425,-153.86,0.000325,2]
[313845109,1707749494436,-153.86,0.000325,2]
[313845110,1707749494446,-153.86,0.000325,2]
[313845111,1707749494457,-1000.0,0.000325,2]
[313845112,1707749494470,-150.0,0.00032516,2]
[313845113,1707749494481,-200.0,0.00032647,2]
[313845114,1707749494492,-200.0,0.000327,5]
[313845115,1707749494503,-151.0,0.00032794,7]
[313845116,1707749494514,-151.0,0.00032794,7]
[313845117,1707749494525,-151.0,0.00032794,7]
[313845118,1707749494536,-151.601803,0.00032794,7]
[313845119,1707749494550,-1000.0,0.00032876,2]
[313845120,1707749494560,-1107.30533827,0.00032876,2]
[313845121,1707749494570,-3230.39714915,0.00032876,2]
[313845122,1707749494585,-1769.60285085,0.00032876,2]
[313845123,1707749494596,-1011.92690059,0.00032876,2]
[313845124,1707749494606,-339.41631332,0.00032876,7]
[313845125,1707749494620,-660.58368668,0.00032876,7]
[313845126,1707749494631,-29.86199079,0.00032876,2]
[313845127,1707749494645,-470.13800921,0.00032876,2]
[313845128,1707749494656,-500.0,0.00032876,2]
[313845129,1707749494668,-500.0,0.00032876,2]
[313845130,1707749494679,-500.0,0.00032876,2]
[313845131,1707749494691,-500.0,0.00032876,2]
[313845132,1707749494702,-9.30054506,0.00032876,2]
[313845133,1707749494721,-161.37,0.00023192,2]
[313845134,1707749494733,-375.9033,0.00032876,2]
[313845135,1707749547796,-155.0,0.00022438,2]
[313845136,1707749547817,-155.0,0.00022438,2]
[313845137,1707749547838,-176.08603695,0.00022439,2]
[313845138,1707749547859,-691.3185346,0.00022439,2]
[313845139,1707749547881,-480167.64998159,0.00022439,2]
[313845140,1707749547902,-78734.118,0.0002244,2]
[313845141,1707749547923,-35066.9409,0.0002244,2]
[313845142,1707749547942,-62235.967,0.00022443,2]
[313845143,1707749547963,-245000.0,0.00022443,2]
[313845144,1707749547985,-157.90833048,0.00022498,2]
[313845145,1707749548006,-157.90833037,0.00022522,2]
[313845146,1707749548027,-500.0,0.00022539,2]
[313845147,1707749548048,-2847.93,0.00022539,2]
[313845148,1707749548070,-500.0,0.00022539,2]
[313845149,1707749548094,-157.90833037,0.00022545,2]
[313845150,1707749548113,-157.90833037,0.00022569,2]
[313845151,1707749548134,-157.90833037,0.00022593,2]
[313845152,1707749548156,-414.3,0.00022593,2]
[313845153,1707749548177,-150.0,0.00022598,2]
[313845154,1707749548199,-150.0,0.00022598,2]
[313845155,1707749548220,-500.0,0.00022599,2]
[313845156,1707749548241,-500.0,0.00022599,2]
[313845157,1707749548262,-500.0,0.00022599,2]
[313845158,1707749548283,-500.0,0.00022599,2]
[313845159,1707749548303,-500.0,0.00022599,2]
[313845160,1707749548324,-500.0,0.00022599,2]
[313845161,1707749548347,-500.0,0.00022599,2]
[313845162,1707749548367,-500.0,0.00022599,2]
[313845163,1707749548388,-500.0,0.00022599,2]
[313845164,1707749548408,-500.0,0.00022599,2]
[313845165,1707749548428,-500.0,0.00022599,2]
[313845166,1707749548451,-500.0,0.00022599,2]
[313845167,1707749548472,-500.0,0.00022599,2]
[313845168,1707749548496,-500.0,0.00022599,7]
[313845169,1707749548519,-500.0,0.00022599,2]
[313845170,1707749548540,-500.0,0.00022599,2]
[313845171,1707749548562,-500.0,0.00022599,2]
[313845172,1707749548583,-500.0,0.00022599,2]
[313845173,1707749548606,-500.0,0.00022599,2]
[313845174,1707749548627,-500.0,0.00022599,2]
[313845175,1707749548648,-500.0,0.00022599,2]
[313845176,1707749548672,-500.0,0.00022599,2]
[313845177,1707749548695,-500.0,0.00022599,2]
[313845178,1707749548716,-500.0,0.00022599,2]
[313845179,1707749548736,-500.0,0.00022599,2]
[313845180,1707749548760,-500.0,0.00022599,2]
[313845181,1707749548780,-500.0,0.00022599,2]
[313845182,1707749548801,-500.0,0.00022599,2]
[313845183,1707749548822,-500.0,0.00022599,2]
[313845184,1707749548844,-500.0,0.00022599,2]
[313845185,1707749548865,-500.0,0.00022599,2]
[313845186,1707749548886,-500.0,0.00022599,2]
[313845187,1707749548908,-500.0,0.00022599,2]
[313845188,1707749549127,-500.0,0.00022599,2]
[313845189,1707749549160,-500.0,0.00022599,2]
[313845190,1707749549185,-500.0,0.00022599,2]
[313845191,1707749549205,-500.0,0.00022599,2]
[313845192,1707749549225,-500.0,0.00022599,2]
[313845193,1707749549246,-500.0,0.00022599,2]
[313845194,1707749549266,-500.0,0.00022599,2]
[313845195,1707749549287,-500.0,0.00022599,2]
[313845196,1707749549308,-500.0,0.00022599,2]
[313845197,1707749549329,-500.0,0.00022599,2]
[313845198,1707749549350,-500.0,0.00022599,2]
[313845199,1707749549371,-500.0,0.00022599,2]
[313845200,1707749549391,-500.0,0.00022599,2]
[313845201,1707749549412,-500.0,0.00022599,2]
[313845202,1707749549433,-500.0,0.00022599,2]
[313845203,1707749549454,-500.0,0.00022599,2]
[313845204,1707749549474,-500.0,0.00022599,2]
[313845205,1707749549496,-500.0,0.00022599,2]
[313845206,1707749549517,-500.0,0.00022599,2]
[313845207,1707749549539,-500.0,0.00022599,2]
[313845208,1707749549559,-800.0,0.00022603,2]
[313845209,1707749549581,-268.81410633,0.0002261,2]
[313845210,1707749549605,-157.90833037,0.00022616,2]
[313845211,1707749549625,-157.90833037,0.0002264,2]
[313845212,1707749549645,-155.0,0.00022641,2]
[313845213,1707749549671,-500.0,0.00022643,2]
[313845214,1707749549692,-588.66,0.00022643,2]
[313845215,1707749549714,-500.0,0.00022643,2]
[313845216,1707749549735,-500.0,0.00022643,2]
[313845217,1707749549757,-575.24,0.00022643,2]
[313845218,1707749549778,-500.0,0.00022643,2]
[313845219,1707749549799,-500.0,0.00022643,2]
[313845220,1707749549820,-1457.88,0.00022643,2]
[313845221,1707749549845,-500.0,0.00022643,2]
[313845222,1707749549865,-500.0,0.00022643,2]
[313845223,1707749549887,-500.0,0.00022643,2]
[313845224,1707749549907,-500.0,0.00022643,2]
[313845225,1707749549927,-500.0,0.00022643,2]
[313845226,1707749549950,-500.0,0.00022643,2]
[313845227,1707749549971,-500.0,0.00022643,2]
[313845228,1707749549992,-500.0,0.00022643,2]
[313845229,1707749550012,-1171.18,0.00022643,2]
[313845230,1707749550034,-500.0,0.00022643,2]
[313845231,1707749550054,-500.0,0.00022643,2]
[313845232,1707749550078,-500.0,0.00022643,2]
[313845233,1707749550100,-500.0,0.00022643,2]
[313845234,1707749550120,-500.0,0.00022643,2]
[313845235,1707749550141,-500.0,0.00022643,2]
[313845236,1707749550161,-500.0,0.00022643,2]
[313845237,1707749550181,-500.0,0.00022643,2]
[313845238,1707749550200,-500.0,0.00022643,2]
[313845239,1707749550222,-500.0,0.00022643,2]
[313845240,1707749550242,-500.0,0.00022643,2]
[313845241,1707749550262,-229.35,0.00022643,2]
[313845242,1707749550281,-500.0,0.00022643,2]
[313845243,1707749550301,-500.0,0.00022643,2]
[313845244,1707749550321,-500.0,0.00022643,2]
[313845245,1707749550342,-188.04534104,0.00022643,2]
[313845246,1707749550362,-500.0,0.00022643,2]
[313845247,1707749550383,-500.0,0.00022643,2]
[313845248,1707749550403,-500.0,0.00022643,2]
[313845249,1707749550423,-500.0,0.00022643,2]
[313845250,1707749550443,-500.0,0.00022643,2]
[313845251,1707749550462,-505.24285577,0.00022643,2]
[313845252,1707749550481,-500.0,0.00022643,2]
[313845253,1707749550501,-500.0,0.00022643,2]
[313845254,1707749550521,-500.0,0.00022643,2]
[313845255,1707749550540,-500.0,0.00022643,2]
[313845256,1707749550561,-500.0,0.00022643,2]
[313845257,1707749550581,-500.0,0.00022643,2]
[313845258,1707749550604,-500.0,0.00022643,2]
[313845259,1707749550623,-500.0,0.00022643,2]
[313845260,1707749550643,-500.0,0.00022643,2]
[313845261,1707749550665,-500.0,0.00022643,2]
[313845262,1707749550685,-500.0,0.00022643,2]
[313845263,1707749550707,-500.0,0.00022643,2]
[313845264,1707749550726,-500.0,0.00022643,2]
[313845265,1707749550749,-500.0,0.00022643,2]
[313845266,1707749550769,-500.0,0.00022643,2]
[313845267,1707749550792,-500.0,0.00022643,2]
[313845268,1707749550814,-698.44,0.00022643,2]
[313845269,1707749550835,-500.0,0.00022643,2]
[313845270,1707749550857,-500.0,0.00022643,2]
[313845271,1707749550877,-500.0,0.00022643,2]
[313845272,1707749550898,-500.0,0.00022643,2]
[313845273,1707749550920,-500.0,0.00022643,2]
[313845274,1707749550940,-500.0,0.00022643,2]
[313845275,1707749550963,-500.0,0.00022643,2]
[313845276,1707749550983,-500.0,0.00022643,2]
[313845277,1707749551004,-500.0,0.00022643,2]
[313845278,1707749551025,-500.0,0.00022643,2]
[313845279,1707749551047,-500.0,0.00022643,2]
[313845280,1707749551068,-500.0,0.00022643,2]
[313845281,1707749551093,-500.0,0.00022643,2]
[313845282,1707749551118,-500.0,0.00022643,2]
[313845283,1707749551140,-1029.0,0.00022643,2]
[313845284,1707749551164,-500.0,0.00022643,2]
[313845285,1707749551192,-500.0,0.00022644,2]
[313845286,1707749551215,-500.0,0.00022644,2]
[313845287,1707749551237,-500.0,0.00022644,2]
[313845288,1707749551259,-590.03,0.00022644,2]
[313845289,1707749551280,-500.0,0.00022644,2]
[313845290,1707749551301,-500.0,0.00022644,2]
[313845291,1707749551323,-500.0,0.00022644,2]
[313845292,1707749551346,-500.0,0.00022644,2]
[313845293,1707749551368,-500.0,0.00022644,2]
[313845294,1707749551393,-500.0,0.00022644,2]
[313845295,1707749551416,-500.0,0.00022644,2]
[313845296,1707749551438,-500.0,0.00022644,2]
[313845297,1707749551461,-500.0,0.00022644,2]
[313845298,1707749551483,-500.0,0.00022644,2]
[313845299,1707749551506,-500.0,0.00022644,2]
[313845300,1707749551530,-539.77,0.00022644,2]
[313845301,1707749551551,-500.0,0.00022644,2]
[313845302,1707749551572,-500.0,0.00022644,2]
[313845303,1707749551596,-500.0,0.00022644,2]
[313845304,1707749551620,-500.0,0.00022644,2]
[313845305,1707749551642,-500.0,0.00022644,2]
[313845306,1707749551663,-500.0,0.00022644,2]
[313845307,1707749551688,-500.0,0.00022644,2]
[313845308,1707749551711,-500.0,0.00022644,2]
[313845309,1707749551733,-500.0,0.00022644,2]
[313845310,1707749551756,-500.0,0.00022644,2]
[313845311,1707749551777,-500.0,0.00022644,2]
[313845312,1707749551797,-500.0,0.00022644,2]
[313845313,1707749551819,-500.0,0.00022644,2]
[313845314,1707749551844,-500.0,0.00022644,2]
[313845315,1707749551865,-680.37,0.00022644,2]
[313845316,1707749551887,-500.0,0.00022644,2]
[313845317,1707749551908,-500.0,0.00022644,2]
[313845318,1707749551930,-500.0,0.00022644,2]
[313845319,1707749551952,-500.0,0.00022644,2]
[313845320,1707749551972,-500.0,0.00022644,2]
[313845321,1707749551994,-500.0,0.00022644,2]
[313845322,1707749552016,-592.18,0.00022644,2]
[313845323,1707749552036,-500.0,0.00022644,2]
[313845324,1707749552058,-500.0,0.00022644,2]
[313845325,1707749552081,-500.0,0.00022644,2]
[313845326,1707749552102,-500.0,0.00022644,2]
[313845327,1707749552123,-500.0,0.00022644,2]
[313845328,1707749552144,-500.0,0.00022644,2]
[313845329,1707749552165,-500.0,0.00022644,2]
[313845330,1707749552188,-157.90833037,0.00022664,2]
[313845331,1707749552208,-156.99596799,0.00022685,2]
[313845332,1707749552228,-496.14061984,0.000228,2]
[313845333,1707749552249,-1500.0,0.000228,8]
[313845334,1707749552271,-500.0,0.00022813,2]
[313845335,1707749552294,-570.08401282,0.00022813,2]
[313845337,1707749587499,158.54,0.00019957,2]
[313845338,1707749670749,184.82551294,0.0002234,2]
[313845339,1707749715504,177.96,0.00021843,2]
[313845340,1707749793451,151.47,0.00021819,2]
[313845341,1707749874322,187.78,0.00021805,2]
[313845342,1707749877104,1000.0,0.00021805,2]
[313845343,1707749890873,156.34,0.00021969,2]
[313845344,1707749891060,156.34,0.0002235,2]
[313845350,1707750004288,206.0,0.00021737,2]
[313845351,1707750063490,150.5,0.00019899,2]
[313845354,1707750380360,200.0,0.00021784,2]
[313845355,1707750406307,156.48,0.00021793,2]
[313845356,1707750538162,150.5,0.00019878,2]
[313845357,1707750563730,158.20297705,0.00022339,2]
[313845358,1707750568711,158.20297703,0.0002237,2]
[313845359,1707750594412,157.5,0.00021915,2]
[313845379,1707750633369,-158.20297703,0.000224,2]
[313845380,1707750633380,-158.20297703,0.00022431,2]
[313845382,1707750633390,-4683.59404594,0.00022439,2]
[313845383,1707750633412,-235.88719885,0.00022439,2]
[313845384,1707750633422,-150.0,0.00022439,2]
[313845385,1707750633432,-1000.0,0.0002244,2]
[313845386,1707750633442,-714.86,0.0002244,2]
[313845387,1707750633452,-732.21,0.0002244,2]
[313845388,1707750633461,-158.20297703,0.00022462,2]
[313845389,1707750633473,-157.5,0.00022486,2]
[313845390,1707750633483,-158.20297703,0.00022493,2]
[313845391,1707750633493,-2500.2,0.00022499,2]
[313845392,1707750633503,-158.20297703,0.00022523,2]
[313845393,1707750633513,-279.48231487,0.00022538,2]
[313845394,1707750633522,-19347.05665651,0.00022538,2]
[313845395,1707750633532,-1304.0675,0.00022543,2]
[313845396,1707750633542,-459.3079,0.00022543,2]
[313845397,1707750633551,-782.3304,0.00022543,2]
[313845398,1707750633561,-158.20297703,0.00022554,2]
[313845399,1707750633571,-158.20297703,0.00022585,2]
[313845400,1707750633582,-500.0,0.00022599,2]
[313845401,1707750633592,-500.0,0.00022599,2]
[313845402,1707750633602,-500.0,0.00022599,2]
[313845403,1707750633612,-500.0,0.00022599,2]
[313845404,1707750633621,-500.0,0.00022599,2]
[313845405,1707750633631,-500.0,0.00022599,2]
[313845406,1707750633640,-500.0,0.00022599,2]
[313845407,1707750633650,-500.0,0.00022599,2]
[313845408,1707750633659,-513.12,0.00022599,2]
[313845409,1707750633668,-535.39,0.00022599,2]
[313845410,1707750633678,-500.0,0.00022599,2]
[313845411,1707750633691,-500.0,0.00022599,2]
[313845412,1707750633701,-500.0,0.00022599,2]
[313845413,1707750633711,-500.0,0.00022599,2]
[313845414,1707750633723,-500.0,0.00022599,2]
[313845416,1707750633733,-500.0,0.00022599,2]
[313845418,1707750633743,-500.0,0.00022599,2]
[313845420,1707750633752,-500.0,0.00022599,2]
[313845422,1707750633762,-500.0,0.00022599,2]
[313845424,1707750633771,-500.0,0.00022599,2]
[313845426,1707750633781,-500.0,0.00022599,2]
[313845429,1707750633792,-500.0,0.00022599,2]
[313845431,1707750633801,-500.0,0.00022599,2]
[313845432,1707750633811,-500.0,0.00022599,2]
[313845434,1707750633821,-500.0,0.00022599,2]
[313845435,1707750633830,-500.0,0.00022599,2]
[313845437,1707750633840,-1029.26,0.00022599,2]
[313845439,1707750633850,-500.0,0.00022599,2]
[313845442,1707750633860,-500.0,0.00022599,2]
[313845444,1707750633870,-500.0,0.00022599,2]
[313845445,1707750633880,-500.0,0.00022599,2]
[313845446,1707750633891,-500.0,0.00022599,2]
[313845447,1707750633902,-500.0,0.00022599,2]
[313845448,1707750633912,-500.0,0.00022599,2]
[313845449,1707750633922,-500.0,0.00022599,2]
[313845450,1707750633933,-500.0,0.00022599,2]
[313845451,1707750633943,-158.20297703,0.00022616,2]
[313845452,1707750633953,-229.07806532,0.00022642,2]
[313845453,1707750633966,-2788.35047104,0.00022642,2]
[313845454,1707750633984,-504.05894076,0.00022643,2]
[313845455,1707750633994,-500.0,0.00022643,2]
[313845456,1707750634006,-500.0,0.00022643,2]
[313845457,1707750634017,-500.0,0.00022643,2]
[313845458,1707750634031,-500.0,0.00022643,2]
[313845459,1707750634042,-500.0,0.00022643,2]
[313845460,1707750634052,-500.0,0.00022643,2]
[313845461,1707750634062,-500.0,0.00022643,2]
[313845462,1707750634073,-500.0,0.00022643,2]
[313845463,1707750634083,-377.17095555,0.00022643,2]
[313845464,1707750634094,-500.0,0.00022643,2]
[313845465,1707750634104,-222.2115206,0.00022643,2]
[313845466,1707750634113,-364.24291868,0.00022643,2]
[313845467,1707750634123,-500.0,0.00022643,2]
[313845468,1707750634132,-500.0,0.00022643,2]
[313845469,1707750634142,-500.0,0.00022643,2]
[313845470,1707750634152,-500.0,0.00022643,2]
[313845471,1707750634161,-500.0,0.00022643,2]
[313845472,1707750634171,-500.0,0.00022643,2]
[313845473,1707750634181,-500.0,0.00022643,2]
[313845474,1707750634190,-500.0,0.00022643,2]
[313845475,1707750634201,-500.0,0.00022643,2]
[313845476,1707750634210,-255.16562423,0.00022643,2]
[313845477,1707750634225,-500.0,0.00022643,2]
[313845478,1707750634235,-500.0,0.00022643,2]
[313845479,1707750634246,-500.0,0.00022643,2]
[313845480,1707750634257,-500.0,0.00022643,2]
[313845481,1707750634267,-500.0,0.00022643,2]
[313845482,1707750634277,-1000.0,0.00022643,2]
[313845483,1707750634286,-307.83166511,0.00022643,2]
[313845484,1707750634296,-352.79896713,0.00022643,2]
[313845485,1707750634307,-500.0,0.00022643,2]
[313845486,1707750634317,-500.0,0.00022643,2]
[313845487,1707750634327,-500.0,0.00022643,2]
[313845488,1707750634337,-500.0,0.00022643,2]
[313845489,1707750634347,-500.0,0.00022643,2]
[313845490,1707750634356,-500.0,0.00022643,2]
[313845491,1707750634366,-500.0,0.00022643,2]
[313845492,1707750634377,-477.87738538,0.00022643,2]
[313845493,1707750634386,-500.0,0.00022643,2]
[313845494,1707750634396,-500.0,0.00022643,2]
[313845495,1707750634406,-500.0,0.00022643,2]
[313845496,1707750634415,-500.0,0.00022643,2]
[313845497,1707750634425,-500.0,0.00022643,2]
[313845498,1707750634435,-500.0,0.00022643,2]
[313845499,1707750634444,-585.93443489,0.00022643,2]
[313845500,1707750634453,-500.0,0.00022643,2]
[313845501,1707750634463,-500.0,0.00022643,2]
[313845502,1707750634479,-500.0,0.00022643,2]
[313845503,1707750634489,-418.75349245,0.00022643,2]
[313845504,1707750634499,-500.0,0.00022643,2]
[313845505,1707750634509,-500.0,0.00022643,2]
[313845506,1707750634519,-500.0,0.00022643,2]
[313845507,1707750634529,-500.0,0.00022643,2]
[313845508,1707750634539,-500.0,0.00022643,2]
[313845509,1707750634549,-387.05233048,0.00022643,2]
[313845510,1707750634558,-500.0,0.00022643,2]
[313845511,1707750634568,-500.0,0.00022643,2]
[313845512,1707750634578,-500.0,0.00022643,2]
[313845513,1707750634587,-500.0,0.00022643,2]
[313845514,1707750634598,-500.0,0.00022643,2]
[313845515,1707750634607,-500.0,0.00022643,2]
[313845516,1707750634617,-557.22,0.00022643,2]
[313845517,1707750634628,-500.0,0.00022643,2]
[313845518,1707750634637,-500.0,0.00022643,2]
[313845519,1707750634647,-500.0,0.00022643,2]
[313845520,1707750634657,-609.43,0.00022643,2]
[313845521,1707750634666,-500.0,0.00022643,2]
[313845522,1707750634676,-500.0,0.00022643,2]
[313845523,1707750634686,-500.0,0.00022643,2]
[313845524,1707750634695,-577.6,0.00022643,2]
[313845525,1707750634705,-500.0,0.00022643,2]
[313845526,1707750634714,-500.0,0.00022643,2]
[313845527,1707750634727,-500.0,0.00022643,2]
[313845528,1707750634736,-500.0,0.00022643,2]
[313845529,1707750634746,-500.0,0.00022643,2]
[313845530,1707750634755,-500.0,0.00022643,2]
[313845531,1707750634764,-500.0,0.00022643,2]
[313845532,1707750634773,-321.08689497,0.00022643,2]
[313845533,1707750634784,-500.0,0.00022643,2]
[313845534,1707750634793,-500.0,0.00022643,2]
[313845535,1707750634804,-500.0,0.00022643,2]
[313845536,1707750634814,-560.92607781,0.00022643,2]
[313845537,1707750634824,-500.0,0.00022643,2]
[313845538,1707750634834,-500.0,0.00022643,2]
[313845539,1707750634844,-500.0,0.00022643,2]
[313845540,1707750634856,-500.0,0.00022643,2]
[313845541,1707750634866,-500.0,0.00022643,2]
[313845542,1707750634876,-500.0,0.00022643,2]
[313845543,1707750634886,-607.08,0.00022643,2]
[313845544,1707750634895,-500.0,0.00022643,2]
[313845545,1707750634905,-500.0,0.00022643,2]
[313845546,1707750634915,-500.0,0.00022643,2]
[313845547,1707750634924,-500.0,0.00022643,2]
[313845548,1707750634934,-500.0,0.00022643,2]
[313845549,1707750634944,-500.0,0.00022643,2]
[313845550,1707750634953,-500.0,0.00022643,2]
[313845551,1707750634963,-500.0,0.00022643,2]
[313845552,1707750634976,-500.0,0.00022643,2]
[313845553,1707750634988,-500.0,0.00022643,2]
[313845554,1707750634997,-500.0,0.00022643,2]
[313845555,1707750635007,-500.0,0.00022643,2]
[313845556,1707750635016,-417.3778529,0.00022643,2]
[313845557,1707750635028,-500.0,0.00022643,2]
[313845558,1707750635040,-500.0,0.00022643,2]
[313845559,1707750635051,-500.0,0.00022643,2]
[313845560,1707750635061,-551.62,0.00022643,2]
[313845561,1707750635073,-596.39681843,0.00022643,2]
[313845562,1707750635082,-178.24430817,0.00022643,2]
[313845563,1707750635093,-500.0,0.00022643,2]
[313845564,1707750635104,-500.0,0.00022643,2]
[313845565,1707750635114,-500.0,0.00022643,2]
[313845566,1707750635125,-500.0,0.00022643,2]
[313845567,1707750635136,-500.0,0.00022643,2]
[313845568,1707750635146,-500.0,0.00022643,2]
[313845569,1707750635156,-500.0,0.00022643,2]
[313845570,1707750635166,-503.56176881,0.00022643,2]
[313845571,1707750635176,-500.0,0.00022643,2]
[313845572,1707750635187,-500.0,0.00022643,2]
[313845573,1707750635197,-500.0,0.00022643,2]
[313845574,1707750635208,-500.0,0.00022643,2]
[313845575,1707750635220,-500.0,0.00022643,2]
[313845576,1707750635230,-622.73935116,0.00022643,2]
[313845577,1707750635241,-500.0,0.00022643,2]
[313845578,1707750635251,-500.0,0.00022643,2]
[313845579,1707750635262,-500.0,0.00022643,2]
[313845580,1707750635272,-500.0,0.00022643,2]
[313845581,1707750635283,-500.0,0.00022643,2]
[313845582,1707750635293,-500.0,0.00022643,2]
[313845583,1707750635303,-500.0,0.00022643,2]
[313845584,1707750635313,-500.0,0.00022643,2]
[313845585,1707750635323,-500.0,0.00022643,2]
[313845586,1707750635332,-500.0,0.00022643,2]
[313845587,1707750635342,-500.0,0.00022643,2]
[313845588,1707750635352,-500.0,0.00022643,2]
[313845589,1707750635361,-500.0,0.00022643,2]
[313845590,1707750635371,-500.0,0.00022643,2]
[313845591,1707750635380,-1000.0,0.00022643,5]
[313845592,1707750635390,-500.0,0.00022643,2]
[313845593,1707750635401,-500.0,0.00022643,2]
[313845594,1707750635410,-500.0,0.00022643,2]
[313845595,1707750635420,-500.0,0.00022643,2]
[313845596,1707750635429,-500.0,0.00022643,2]
[313845597,1707750635439,-500.0,0.00022643,2]
[313845598,1707750635449,-500.0,0.00022643,2]
[313845599,1707750635459,-500.0,0.00022643,2]
[313845600,1707750635469,-500.0,0.00022643,2]
[313845601,1707750635480,-500.0,0.00022643,2]
[313845602,1707750635490,-500.0,0.00022643,2]
[313845603,1707750635502,-480.8052164,0.00022643,2]
[313845604,1707750635513,-500.0,0.00022643,2]
[313845605,1707750635524,-500.0,0.00022643,2]
[313845606,1707750635536,-500.0,0.00022643,2]
[313845607,1707750635547,-500.0,0.00022643,2]
[313845608,1707750635558,-500.0,0.00022643,2]
[313845609,1707750635569,-500.0,0.00022643,2]
[313845610,1707750635580,-500.0,0.00022643,2]
[313845611,1707750635591,-500.0,0.00022643,2]
[313845612,1707750635601,-500.0,0.00022643,2]
[313845613,1707750635611,-500.0,0.00022643,2]
[313845614,1707750635621,-500.0,0.00022643,2]
[313845615,1707750635631,-500.0,0.00022643,2]
[313845616,1707750635641,-500.0,0.00022643,2]
[313845617,1707750635651,-500.0,0.00022643,2]
[313845618,1707750635661,-500.0,0.00022643,2]
[313845619,1707750635671,-500.0,0.00022643,2]
[313845620,1707750635681,-500.0,0.00022643,2]
[313845621,1707750635691,-500.0,0.00022643,2]
[313845622,1707750635702,-500.0,0.00022643,2]
[313845623,1707750635711,-500.0,0.00022643,2]
[313845624,1707750635724,-500.0,0.00022643,2]
[313845625,1707750635734,-500.0,0.00022643,2]
[313845626,1707750635745,-500.0,0.00022643,2]
[313845627,1707750635754,-150.99,0.00022643,2]
[313845628,1707750635764,-299.99,0.00022643,7]
[313845629,1707750635774,-158.20297703,0.00022646,2]
[313845630,1707750635785,-158.20297703,0.00022677,2]
[313845631,1707750635795,-5000.0,0.00022698,2]
[313845632,1707750635806,-463.17521,0.00022699,2]
[313845633,1707750635816,-186.84151724,0.000227,2]
[313845634,1707750635826,-158.20297703,0.00022708,2]
[313845635,1707750635836,-177.78732626,0.00022709,2]
[313845636,1707750635847,-499.99,0.00022711,2]
[313845637,1707750635857,-463.17520999,0.00022728,2]
[313845638,1707750635867,-158.20297703,0.00022739,2]
[313845639,1707750635878,-186.84151723,0.0002275,2]
[313845640,1707750635888,-463.17520999,0.00022756,2]
[313845641,1707750635899,-463.17520999,0.00022785,2]
[313845642,1707750635909,-408.91576095,0.00022797,2]
[313845643,1707750635919,-4158.58131012,0.00022798,2]
[313845644,1707750635930,-251.60897374,0.00022798,2]